fUST/lending_fUST_20240209
["ID","MTS","AMOUNT","RATE_DAILY","PERIOD"]
[313616489,1707481630927,-500.53712975,0.00024657,2]
[313616490,1707481630948,-506.93672384,0.00024657,2]
[313616491,1707481630969,-500.0,0.00024657,2]
[313616492,1707481630990,-500.0,0.00024657,2]
[313616493,1707481631011,-500.17049758,0.00024657,2]
[313616494,1707481631032,-500.0,0.00024657,2]
[313616495,1707481631053,-500.0,0.00024657,2]
[313616496,1707481631074,-500.0,0.00024657,2]
[313616497,1707481631099,-500.0,0.00024657,2]
[313616498,1707481631120,-500.0,0.00024657,2]
[313616499,1707481631140,-500.0,0.00024657,2]
[313616500,1707481631160,-500.0,0.00024657,2]
[313616501,1707481631183,-500.0,0.00024657,2]
[313616502,1707481631204,-500.0,0.00024657,2]
[313616503,1707481631225,-500.0,0.00024657,2]
[313616504,1707481631245,-234.91297846,0.00024657,2]
[313616505,1707481631267,-500.0,0.00024657,2]
[313616506,1707481631290,-454.810239,0.00024657,2]
[313616507,1707481631311,-500.0,0.00024657,2]
[313616508,1707481631333,-607.3,0.00024657,2]
[313616509,1707481631355,-1122.65,0.00024657,2]
[313616510,1707481631374,-500.0,0.00024657,2]
[313616511,1707481631394,-500.0,0.00024657,2]
[313616512,1707481631414,-556.96931435,0.00024657,2]
[313616513,1707481631436,-500.0,0.00024657,2]
[313616514,1707481631457,-987.7,0.00024657,2]
[313616515,1707481631478,-500.0,0.00024657,2]
[313616516,1707481631498,-500.0,0.00024657,2]
[313616517,1707481631518,-500.0,0.00024657,2]
[313616518,1707481631539,-500.0,0.00024657,2]
[313616519,1707481631559,-505.29273839,0.00024657,2]
[313616520,1707481631579,-629.43877187,0.00024657,2]
[313616521,1707481631599,-500.0,0.00024657,2]
[313616522,1707481631620,-500.0,0.00024657,2]
[313616523,1707481631643,-500.0,0.00024657,2]
[313616524,1707481631664,-500.0,0.00024657,2]
[313616525,1707481631686,-500.0,0.00024657,2]
[313616526,1707481631708,-486.40156789,0.00024657,2]
[313616527,1707481631729,-505.23460937,0.00024657,2]
[313616528,1707481631749,-215.6477464,0.00024657,2]
[313616529,1707481631770,-500.0,0.00024657,2]
[313616530,1707481631791,-500.0,0.00024657,2]
[313616531,1707481631812,-513.89308957,0.00024657,2]
[313616532,1707481631834,-500.0,0.00024657,2]
[313616533,1707481631858,-500.0,0.00024657,2]
[313616534,1707481631880,-588.8760225,0.00024657,2]
[313616535,1707481631901,-500.0,0.00024657,2]
[313616536,1707481631923,-500.0,0.00024657,2]
[313616537,1707481631944,-1259.61,0.00024657,2]
[313616538,1707481631963,-150.0,0.00024657,2]
[313616539,1707481631984,-500.0,0.00024657,2]
[313616540,1707481632004,-1000.0,0.00024657,2]
[313616541,1707481632024,-831.76,0.00024657,2]
[313616542,1707481632044,-450.0872181,0.00024657,2]
[313616543,1707481632066,-3428.55,0.00024657,2]
[313616544,1707481632087,-500.0,0.00024657,2]
[313616545,1707481632110,-1200.49,0.00024657,2]
[313616546,1707481632131,-500.0,0.00024657,2]
[313616547,1707481632152,-936.73,0.00024657,2]
[313616548,1707481632174,-500.0,0.00024657,2]
[313616549,1707481632197,-7953.22,0.00024657,2]
[313616550,1707481632218,-165.61925651,0.00024657,2]
[313616551,1707481632239,-531.84942507,0.00024657,2]
[313616552,1707481632261,-500.0,0.00024657,2]
[313616553,1707481632283,-14121.56,0.00024657,2]
[313616554,1707481632304,-500.0,0.00024657,2]
[313616555,1707481632325,-652.17,0.00024657,2]
[313616556,1707481632350,-230.8015579,0.00024657,2]
[313616557,1707481632373,-500.0,0.00024657,2]
[313616558,1707481632400,-7906.57005982,0.00024657,2]
[313616559,1707481634103,-1191.37,0.00024647,3]
[313616560,1707481634126,-2098.88994018,0.00024657,2]
[313616561,1707481634148,-1444.0,0.00024657,2]
[313616562,1707481634171,-500.0,0.00024657,2]
[313616563,1707481634194,-1089.98,0.00024657,2]
[313616564,1707481634215,-500.0,0.00024657,2]
[313616565,1707481634237,-5529.58,0.00024657,2]
[313616566,1707481634257,-1730.36,0.00024657,2]
[313616567,1707481634278,-507.36286595,0.00024657,5]
[313616568,1707481634298,-538.66,0.00024657,2]
[313616569,1707481634318,-532.41421159,0.00024657,2]
[313616570,1707481634338,-538.93969599,0.00024657,2]
[313616571,1707481634358,-16216.33,0.00024657,2]
[313616572,1707481634378,-500.0,0.00024657,2]
[313616573,1707481634398,-500.0,0.00024657,2]
[313616574,1707481634419,-500.0,0.00024657,2]
[313616575,1707481634442,-641.02974925,0.00024657,2]
[313616576,1707481634462,-4595.62,0.00024657,2]
[313616577,1707481634483,-500.0,0.00024657,2]
[313616578,1707481634502,-500.0,0.00024657,2]
[313616579,1707481634522,-1358.43,0.00024657,2]
[313616580,1707481634542,-500.0,0.00024657,2]
[313616581,1707481634561,-500.0,0.00024657,2]
[313616582,1707481634583,-3690.15,0.00024657,2]
[313616583,1707481634603,-500.0,0.00024657,2]
[313616584,1707481634626,-887.87,0.00024657,2]
[313616585,1707481634646,-512.37488173,0.00024657,2]
[313616586,1707481634669,-8078.19,0.00024657,2]
[313616587,1707481634693,-574.69,0.00024657,2]
[313616588,1707481634715,-620.69089419,0.00024657,2]
[313616589,1707481634736,-2030.7,0.00024657,2]
[313616590,1707481634758,-1092.98,0.00024657,2]
[313616591,1707481634781,-500.0,0.00024657,2]
[313616592,1707481634801,-7463.3,0.00024657,2]
[313616593,1707481634826,-500.0,0.00024657,2]
[313616594,1707481634847,-380.0,0.00024658,2]
[313616595,1707481634869,-620.35164779,0.00024685,2]
[313616596,1707481634889,-151.0,0.00024738,2]
[313616597,1707481634908,-21141.89197977,0.00024831,2]
[313616598,1707481634932,-1005.27290984,0.00024931,3]
[313616599,1707481634952,-500.0,0.00024931,2]
[313616600,1707481634971,-500.0,0.00024931,2]
[313616601,1707481634992,-607.3,0.00024931,2]
[313616602,1707481635013,-1122.65,0.00024931,2]
[313616603,1707481635033,-500.0,0.00024931,2]
[313616604,1707481635053,-500.0,0.00024931,2]
[313616605,1707481635073,-987.7,0.00024931,2]
[313616606,1707481635093,-500.0,0.00024931,2]
[313616607,1707481635112,-500.0,0.00024931,2]
[313616608,1707481635132,-503.90611667,0.00024931,2]
[313616609,1707481635152,-500.0,0.00024931,2]
[313616610,1707481635173,-500.0,0.00024931,2]
[313616611,1707481635194,-500.0,0.00024931,2]
[313616612,1707481635216,-500.0,0.00024931,2]
[313616613,1707481635236,-500.0,0.00024931,2]
[313616614,1707481635257,-500.0,0.00024931,2]
[313616615,1707481635278,-500.0,0.00024931,2]
[313616616,1707481635298,-500.0,0.00024931,2]
[313616617,1707481635318,-1259.61,0.00024931,2]
[313616618,1707481635340,-150.0,0.00024931,2]
[313616619,1707481635361,-1000.0,0.00024931,2]
[313616620,1707481635381,-831.76,0.00024931,2]
[313616621,1707481635402,-3428.55,0.00024931,2]
[313616622,1707481635422,-500.0,0.00024931,2]
[313616623,1707481635443,-1200.49,0.00024931,2]
[313616624,1707481635463,-500.0,0.00024931,2]
[313616625,1707481635483,-936.73,0.00024931,2]
[313616626,1707481635504,-500.0,0.00024931,2]
[313616627,1707481635525,-7953.22,0.00024931,2]
[313616628,1707481635546,-571.91814808,0.00024931,2]
[313616629,1707481635567,-14121.56,0.00024931,2]
[313616630,1707481635588,-528.90103496,0.00024931,2]
[313616631,1707481635609,-652.17,0.00024931,2]
[313616632,1707481635631,-500.0,0.00024931,2]
[313616633,1707481635652,-10005.46,0.00024931,2]
[313616634,1707481635675,-1444.0,0.00024931,2]
[313616635,1707481635772,-500.0,0.00024931,2]
[313616636,1707481635793,-1089.98,0.00024931,2]
[313616637,1707481635813,-5529.58,0.00024931,2]
[313616638,1707481635832,-1730.36,0.00024931,2]
[313616639,1707481635853,-538.66,0.00024931,2]
[313616640,1707481635873,-16216.33,0.00024931,2]
[313616641,1707481635893,-500.0,0.00024931,2]
[313616642,1707481635913,-500.0,0.00024931,2]
[313616643,1707481635935,-500.0,0.00024931,2]
[313616644,1707481635956,-4595.62,0.00024931,2]
[313616645,1707481635976,-500.0,0.00024931,2]
[313616646,1707481635996,-500.0,0.00024931,2]
[313616647,1707481636016,-1358.43,0.00024931,2]
[313616648,1707481636035,-500.0,0.00024931,2]
[313616649,1707481636054,-203.4850144,0.00024931,2]
[313616650,1707481636076,-3690.15,0.00024931,2]
[313616651,1707481636095,-500.0,0.00024931,2]
[313616652,1707481636114,-887.87,0.00024931,2]
[313616653,1707481636135,-8078.19,0.00024931,2]
[313616654,1707481636157,-574.69,0.00024931,2]
[313616655,1707481636178,-2030.7,0.00024931,2]
[313616656,1707481636202,-1092.98,0.00024931,2]
[313616657,1707481636222,-7463.3,0.00024931,2]
[313616658,1707481636241,-2686.30864387,0.00025,2]
[313616659,1707481636260,-335.67869431,0.00025,2]
[313616660,1707481636281,-4739.90020037,0.00025,2]
[313616661,1707481636301,-155.73981733,0.00025,2]
[313616662,1707481636320,-155.13030946,0.00025,2]
[313616663,1707481636340,-155.54718526,0.00025,2]
[313616664,1707481636363,-27016.0328,0.00025,2]
[313616665,1707481636383,-1000.0,0.00025,25]
[313616666,1707481636403,-155.20978745,0.00025,2]
[313616667,1707481636422,-1746.80190151,0.00025,2]
[313616668,1707481636443,-2380.91522714,0.00025,2]
[313616669,1707481636462,-1005.82136089,0.00025,2]
[313616670,1707481636482,-500.0,0.00025,5]
[313616671,1707481636500,-155.02170304,0.00025,2]
[313616672,1707481636521,-2000.0,0.00025,2]
[313616673,1707481636542,-150.0,0.00025,3]
[313616674,1707481636563,-181.948371,0.00025,2]
[313616675,1707481636583,-2000.0,0.0002501,2]
[313616676,1707481636611,-2000.0,0.0002502,2]
[313616677,1707481636633,-2000.0,0.0002503,2]
[313616678,1707481636654,-2000.0,0.0002504,2]
[313616679,1707481636676,-2000.0,0.0002505,2]
[313616680,1707481636699,-2000.0,0.0002506,2]
[313616681,1707481636721,-2000.0,0.0002507,2]
[313616682,1707481636741,-2000.0,0.0002508,2]
[313616683,1707481636761,-2000.0,0.0002509,2]
[313616684,1707481636780,-3485.457568,0.000251,2]
[313616685,1707481636800,-391.0,0.00025204,7]
[313616686,1707481636820,-500.0,0.00025205,2]
[313616687,1707481636839,-500.0,0.00025205,2]
[313616688,1707481636858,-607.3,0.00025205,2]
[313616689,1707481636877,-1122.65,0.00025205,2]
[313616690,1707481636897,-500.0,0.00025205,2]
[313616691,1707481636916,-500.0,0.00025205,2]
[313616692,1707481636938,-987.7,0.00025205,2]
[313616693,1707481636959,-500.0,0.00025205,2]
[313616694,1707481636979,-500.0,0.00025205,2]
[313616695,1707481636999,-522.72079761,0.00025205,2]
[313616696,1707481637019,-500.0,0.00025205,2]
[313616697,1707481637042,-500.0,0.00025205,2]
[313616698,1707481637062,-500.0,0.00025205,2]
[313616699,1707481637081,-500.0,0.00025205,2]
[313616700,1707481637102,-500.0,0.00025205,2]
[313616701,1707481637123,-500.0,0.00025205,2]
[313616702,1707481637144,-500.0,0.00025205,2]
[313616703,1707481637166,-1259.61,0.00025205,2]
[313616704,1707481637188,-210.44529461,0.00025205,2]
[313616705,1707481637208,-632.58614776,0.00025205,2]
[313616706,1707481637443,-367.41385224,0.00025205,2]
[313616707,1707481637463,-831.76,0.00025205,2]
[313616708,1707481637483,-3428.55,0.00025205,2]
[313616709,1707481637503,-500.0,0.00025205,2]
[313616710,1707481637596,-936.73,0.00025205,2]
[313616711,1707481637617,-500.0,0.00025205,2]
[313616712,1707481637641,-7953.22,0.00025205,2]
[313616713,1707481637661,-2154.71618776,0.00025205,2]
[313616714,1707481639087,-2999.98,0.00024657,2]
[313616715,1707481639108,-2999.98,0.00024931,2]
[313616716,1707481639129,-11966.84381224,0.00025205,2]
[313616717,1707481639150,-652.17,0.00025205,2]
[313616718,1707481639170,-500.0,0.00025205,2]
[313616719,1707481639192,-10005.46,0.00025205,2]
[313616720,1707481639213,-1444.0,0.00025205,2]
[313616721,1707481639234,-500.0,0.00025205,2]
[313616722,1707481639254,-1089.98,0.00025205,2]
[313616723,1707481639275,-5529.58,0.00025205,2]
[313616724,1707481639296,-1730.36,0.00025205,2]
[313616725,1707481639318,-538.66,0.00025205,2]
[313616726,1707481639338,-16216.33,0.00025205,2]
[313616727,1707481639359,-500.0,0.00025205,2]
[313616728,1707481639380,-500.0,0.00025205,2]
[313616729,1707481639401,-500.0,0.00025205,2]
[313616730,1707481639421,-4595.62,0.00025205,2]
[313616731,1707481639442,-500.0,0.00025205,2]
[313616732,1707481639462,-500.0,0.00025205,2]
[313616733,1707481639482,-1358.43,0.00025205,2]
[313616734,1707481639502,-500.0,0.00025205,2]
[313616735,1707481639523,-3690.15,0.00025205,2]
[313616736,1707481639542,-500.0,0.00025205,2]
[313616737,1707481639562,-887.87,0.00025205,2]
[313616738,1707481639582,-8078.19,0.00025205,2]
[313616739,1707481639603,-574.69,0.00025205,2]
[313616740,1707481639625,-27.80207776,0.00025205,2]
[313616741,1707481643083,-154.92253873,0.00024656,4]
[313616742,1707481643104,-18.00564127,0.00024656,2]
[313616743,1707481645100,-592.9693191,0.00024655,2]
[313616744,1707481645122,-439.76181197,0.00024656,2]
[313616745,1707481645142,-2002.89792224,0.00025205,2]
[313616746,1707481645163,-1092.98,0.00025205,2]
[313616747,1707481645183,-7463.3,0.00025205,2]
[313616748,1707481645208,-2999.98,0.00025205,2]
[313616749,1707481645228,-1111.16821382,0.00025297,2]
[313616750,1707481645247,-47748.65482287,0.0002538,2]
[313616805,1707481835744,-719.85189847,0.00021998,2]
[313616806,1707481835754,-1032.36645246,0.00021999,3]
[313616807,1707481835765,-20000.0,0.00022,3]
[313616809,1707481835775,-154.92253873,0.00022924,4]
[313616810,1707481835784,-5000.0,0.00023098,2]
[313616812,1707481835793,-200.0,0.00023145,2]
[313616814,1707481835802,-1889.86838059,0.00023145,2]
[313616815,1707481835811,-592.9693191,0.00024,2]
[313616816,1707481835821,-200.0,0.00024301,7]
[313616817,1707481835830,-500.24501978,0.0002448,5]
[313616818,1707481835839,-478.78,0.00024647,3]
[313616819,1707481835850,-187.87708508,0.00024657,2]
[313616820,1707481835859,-819.64,0.00024657,2]
[313616821,1707481835869,-6959.06,0.00024657,2]
[313616822,1707481835878,-570.65,0.00024657,2]
[313616823,1707481835888,-1263.5,0.00024657,2]
[313616824,1707481835898,-500.0,0.00024657,2]
[313616825,1707481835908,-8754.78,0.00024657,2]
[313616826,1707481835917,-160.05448031,0.00024657,2]
[313616827,1707481835927,-12356.36,0.00024657,2]
[313616828,1707481835936,-953.73,0.00024657,2]
[313616829,1707481835945,-157.05691548,0.00024657,2]
[313616830,1707481835957,-342.94308452,0.00024657,2]
[313616831,1707481835967,-481.44931631,0.00024657,2]
[313616832,1707481835976,-500.0,0.00024657,2]
[313616833,1707481835986,-500.0,0.00024657,2]
[313616834,1707481835995,-500.0,0.00024657,2]
[313616836,1707481836004,-14189.29,0.00024657,2]
[313616837,1707481836013,-1514.07,0.00024657,2]
[313616838,1707481836023,-4838.38,0.00024657,2]
[313616839,1707481836032,-500.0,0.00024657,2]
[313616840,1707481836042,-3228.88,0.00024657,2]
[313616841,1707481836052,-500.0,0.00024657,2]
[313616842,1707481836061,-4021.17,0.00024657,2]
[313616843,1707481836071,-7068.41,0.00024657,2]
[313616844,1707481836080,-500.0,0.00024657,2]
[313616845,1707481836090,-500.0,0.00024657,2]
[313616846,1707481836100,-500.0,0.00024657,2]
[313616847,1707481836110,-956.36,0.00024657,2]
[313616848,1707481836119,-819.64,0.00024931,2]
[313616849,1707481836129,-6959.06,0.00024931,2]
[313616850,1707481836138,-570.65,0.00024931,2]
[313616851,1707481836147,-1263.5,0.00024931,2]
[313616852,1707481836157,-500.0,0.00024931,2]
[313616853,1707481836166,-8754.78,0.00024931,2]
[313616854,1707481836176,-3778.97374653,0.00024931,2]
[313616855,1707481836188,-873.77122576,0.00024931,2]
[313616881,1707481839037,-7703.61502771,0.00024931,2]
[313616882,1707481839046,-953.73,0.00024931,2]
[313616884,1707481839056,-500.0,0.00024931,2]
[313616885,1707481839065,-500.0,0.00024931,2]
[313616886,1707481839074,-500.0,0.00024931,2]
[313616888,1707481839083,-500.0,0.00024931,2]
[313616889,1707481839092,-14189.29,0.00024931,2]
[313616890,1707481839101,-1514.07,0.00024931,2]
[313616891,1707481839112,-4838.38,0.00024931,2]
[313616892,1707481839120,-500.0,0.00024931,2]
[313616893,1707481839130,-3228.88,0.00024931,2]
[313616894,1707481839139,-500.0,0.00024931,2]
[313616895,1707481839148,-4021.17,0.00024931,2]
[313616896,1707481839158,-7068.41,0.00024931,2]
[313616897,1707481839167,-500.0,0.00024931,2]
[313616898,1707481839176,-500.0,0.00024931,2]
[313616899,1707481839186,-500.0,0.00024931,2]
[313616900,1707481839194,-956.36,0.00024931,2]
[313616901,1707481839203,-296.56577586,0.00025,2]
[313616902,1707481839212,-7408.73547856,0.00025,2]
[313616903,1707481839222,-154.92253873,0.00025,2]
[313616904,1707481839231,-335.67869431,0.00025,2]
[313616905,1707481839240,-4739.90020037,0.00025,2]
[313616906,1707481839249,-500.0,0.00025204,2]
[313616907,1707481839258,-500.0,0.00025204,2]
[313616908,1707481839267,-419.43382616,0.00025204,2]
[313616909,1707481839277,-500.0,0.00025204,2]
[313616910,1707481839286,-500.0,0.00025204,2]
[313616911,1707481839295,-819.64,0.00025205,2]
[313616912,1707481839304,-6959.06,0.00025205,2]
[313616913,1707481839313,-570.65,0.00025205,2]
[313616914,1707481839322,-1263.5,0.00025205,2]
[313616915,1707481839331,-500.0,0.00025205,2]
[313616916,1707481839340,-8754.78,0.00025205,2]
[313616917,1707481839349,-12356.36,0.00025205,2]
[313616918,1707481839360,-953.73,0.00025205,2]
[313616919,1707481839369,-500.0,0.00025205,2]
[313616920,1707481839378,-500.0,0.00025205,2]
[313616921,1707481839387,-155.43532415,0.00025205,2]
[313616922,1707481839396,-500.0,0.00025205,2]
[313616923,1707481839405,-14189.29,0.00025205,2]
[313616924,1707481839414,-1514.07,0.00025205,2]
[313616925,1707481839423,-4838.38,0.00025205,2]
[313616926,1707481839432,-426.61280184,0.00025205,2]
[313616927,1707481839441,-3228.88,0.00025205,2]
[313616928,1707481839450,-500.0,0.00025205,2]
[313616929,1707481839459,-4021.17,0.00025205,2]
[313616930,1707481839468,-7068.41,0.00025205,2]
[313616931,1707481839477,-632.58158511,0.00025205,2]
[313616932,1707481839486,-500.0,0.00025205,2]
[313616933,1707481839497,-500.0,0.00025205,2]
[313616934,1707481839506,-956.36,0.00025205,2]
[313616935,1707481839516,-265785.9078872,0.0002538,2]
[313616936,1707481839530,-2403.13114041,0.0002538,2]
[313616937,1707481839542,-36234.8852027,0.0002538,2]
[313616938,1707481839551,-1832.17488523,0.0002538,2]
[313616939,1707481839561,-300.0,0.0002538,2]
[313616940,1707481839570,-1470.82377289,0.0002538,2]
[313616941,1707481839579,-154.92253873,0.0002538,2]
[313616942,1707481839588,-1000.0,0.00025407,3]
[313616943,1707481839597,-4040.85811913,0.00025477,2]
[313616944,1707481839607,-607.3,0.00025479,2]
[313616945,1707481839616,-1122.65,0.00025479,2]
[313616946,1707481839625,-500.0,0.00025479,2]
[313616947,1707481839634,-987.7,0.00025479,2]
[313616948,1707481839642,-500.0,0.00025479,2]
[313616949,1707481839651,-461.31217345,0.00025479,2]
[313616950,1707481839661,-500.0,0.00025479,2]
[313616951,1707481839671,-500.0,0.00025479,2]
[313616952,1707481839680,-1259.61,0.00025479,2]
[313616953,1707481839690,-1000.0,0.00025479,2]
[313616954,1707481839699,-831.76,0.00025479,2]
[313616955,1707481839707,-500.0,0.00025479,2]
[313616956,1707481839717,-526.71204991,0.00025479,2]
[313616957,1707481839725,-500.0,0.00025479,2]
[313616958,1707481839735,-500.0,0.00025479,2]
[313616959,1707481839744,-1358.43,0.00025479,2]
[313616960,1707481839753,-500.0,0.00025479,2]
[313616961,1707481839762,-500.0,0.00025479,2]
[313616962,1707481839772,-887.87,0.00025479,2]
[313616963,1707481839781,-574.69,0.00025479,2]
[313616964,1707481839789,-2030.7,0.00025479,2]
[313616965,1707481839798,-321.73645387,0.00025479,2]
[313616966,1707481839814,-7141.56354613,0.00025479,2]
[313616967,1707481839823,-2999.98,0.00025479,2]
[313616968,1707481839832,-819.64,0.00025479,2]
[313616969,1707481839841,-6959.06,0.00025479,2]
[313616970,1707481839850,-570.65,0.00025479,2]
[313616971,1707481839860,-1263.5,0.00025479,2]
[313616972,1707481839869,-500.0,0.00025479,2]
[313616973,1707481839878,-8754.78,0.00025479,2]
[313616974,1707481839887,-12356.36,0.00025479,2]
[313616975,1707481839896,-953.73,0.00025479,2]
[313616976,1707481839905,-500.0,0.00025479,2]
[313616977,1707481839994,-500.0,0.00025479,2]
[313616978,1707481840004,-500.0,0.00025479,2]
[313616979,1707481840013,-14189.29,0.00025479,2]
[313616980,1707481840022,-1514.07,0.00025479,2]
[313616981,1707481840031,-4838.38,0.00025479,2]
[313616982,1707481840041,-3228.88,0.00025479,2]
[313616983,1707481840050,-500.0,0.00025479,2]
[313616984,1707481840059,-4021.17,0.00025479,2]
[313616985,1707481840069,-7068.41,0.00025479,2]
[313616987,1707481840078,-500.0,0.00025479,2]
[313616988,1707481840087,-500.0,0.00025479,2]
[313616990,1707481840096,-956.36,0.00025479,2]
[313616992,1707481840107,-177.557535,0.00025479,2]
[313616993,1707481840116,-500.0,0.000255,2]
[313616994,1707481840126,-1000.0,0.0002552,3]
[313616995,1707481840135,-5042.12074738,0.00025662,2]
[313616996,1707481840145,-607.3,0.00025753,2]
[313616997,1707481840154,-1122.65,0.00025753,2]
[313616998,1707481840163,-500.0,0.00025753,2]
[313616999,1707481840173,-987.7,0.00025753,2]
[313617000,1707481840182,-500.0,0.00025753,2]
[313617001,1707481840191,-500.0,0.00025753,2]
[313617002,1707481840200,-454.8002446,0.00025753,2]
[313617003,1707481840210,-1259.61,0.00025753,2]
[313617004,1707481840220,-1000.0,0.00025753,2]
[313617005,1707481840229,-831.76,0.00025753,2]
[313617006,1707481840238,-500.0,0.00025753,2]
[313617007,1707481840247,-500.0,0.00025753,2]
[313617008,1707481840256,-500.0,0.00025753,2]
[313617009,1707481840266,-1358.43,0.00025753,2]
[313617010,1707481840274,-500.0,0.00025753,2]
[313617011,1707481840284,-500.0,0.00025753,2]
[313617012,1707481840293,-887.87,0.00025753,2]
[313617013,1707481840302,-574.69,0.00025753,2]
[313617014,1707481840311,-1716.06056828,0.00025753,2]
[313617015,1707481840328,-314.63943172,0.00025753,2]
[313617016,1707481840337,-169.87260828,0.00025753,2]
[313617090,1707481845018,-1291.18671477,0.00024656,2]
[313617092,1707481845027,-583.39328523,0.00024657,2]
[313617094,1707481845041,-626.05340804,0.00024657,2]
[313617097,1707481845053,-5002.89330673,0.00024657,2]
[313617099,1707481845062,-500.0,0.00024657,2]
[313617101,1707481845072,-500.0,0.00024657,2]
[313617103,1707481845081,-2343.00584307,0.00024931,2]
[313617106,1707481845098,-3869.33415693,0.00024931,2]
[313617107,1707481845107,-500.0,0.00024931,2]
[313617109,1707481845117,-500.0,0.00024931,2]
[313617110,1707481845126,-253.921881,0.00024955,2]
[313617111,1707481845135,-6212.34,0.00025205,2]
[313617112,1707481845144,-500.0,0.00025205,2]
[313617113,1707481845154,-500.0,0.00025205,2]
[313617114,1707481845163,-6212.34,0.00025479,2]
[313617115,1707481845172,-500.0,0.00025479,2]
[313617116,1707481845181,-649.79157896,0.00025479,2]
[313617117,1707481845190,-913.01,0.00025743,3]
[313617118,1707481845200,-2999.98,0.00025753,2]
[313617119,1707481845209,-819.64,0.00025753,2]
[313617120,1707481845220,-6959.06,0.00025753,2]
[313617121,1707481845230,-570.65,0.00025753,2]
[313617122,1707481845241,-1263.5,0.00025753,2]
[313617123,1707481845251,-500.0,0.00025753,2]
[313617124,1707481845262,-8754.78,0.00025753,2]
[313617125,1707481845272,-12356.36,0.00025753,2]
[313617126,1707481845282,-953.73,0.00025753,2]
[313617127,1707481845293,-500.0,0.00025753,2]
[313617128,1707481845303,-500.0,0.00025753,2]
[313617129,1707481845314,-500.0,0.00025753,2]
[313617130,1707481845325,-14189.29,0.00025753,2]
[313617131,1707481845337,-1514.07,0.00025753,2]
[313617132,1707481845348,-4838.38,0.00025753,2]
[313617133,1707481845359,-1055.91827311,0.00025753,2]
[313617135,1707481845378,-2172.96172689,0.00025753,2]
[313617136,1707481845389,-500.0,0.00025753,2]
[313617137,1707481845400,-4021.17,0.00025753,2]
[313617139,1707481845411,-7068.41,0.00025753,2]
[313617141,1707481845421,-500.0,0.00025753,2]
[313617143,1707481845432,-500.0,0.00025753,2]
[313617145,1707481845443,-956.36,0.00025753,2]
[313617148,1707481845453,-6212.34,0.00025753,2]
[313617149,1707481845463,-500.0,0.00025753,2]
[313617151,1707481845472,-300.0,0.000258,12]
[313617153,1707481845482,-873.50632947,0.00025896,2]
[313617155,1707481845491,-6000.0,0.000259,3]
[313617157,1707481845501,-620.01758239,0.00025919,2]
[313617159,1707481845510,-500.0,0.00025958,2]
[313617161,1707481845520,-2960.03103888,0.00025959,2]
[313617163,1707481845529,-1240.64395905,0.00025996,2]
[313617165,1707481845539,-355.57,0.00026,2]
[313617167,1707481845548,-280.57621177,0.00026,2]
[313617169,1707481845558,-500.0,0.00026,2]
[313617171,1707481845567,-13939.6631828,0.00026,2]
[313617331,1707481850300,-500.24501978,0.0002448,5]
[313617332,1707481850310,-4496.73960399,0.00025752,2]
[313617333,1707481850319,-11675.40541623,0.00026,2]
[313617334,1707481850332,-70487.8960199,0.00026,2]
[313617335,1707481850342,-16470.37926509,0.00026,2]
[313617336,1707481850351,-1000.0,0.00026,26]